Cogmind - Beta 16.1 @@@ ROGUE MODE // 2026.02.21 @ 13:12:08 Player: Kaisercar Result: Self-destructed Performance ------------- Evolutions (3) 1500 Regions Visited (6) 1200 Robots Destroyed (58) 290 Value Destroyed (1609) 1609 Prototype IDs (16) 320 Alien Tech Used (0) 0 Bonus (0) 0 TOTAL SCORE: 4919 Bonus ------- None Cogmind --------- Core Integrity 554/700 Matter 205/300 Energy 100/100 System Corruption 19% Temperature Cool (0) Movement Walking (90) Location -7/Waste Parts ------- > --- POWER (1) -------- (None) > --- PROPULSION (3) --- Arachnoskeleton > --- UTILITY (6) ------ Large Storage Unit Machine Analyzer Improved Terrain Scan Processor > --- WEAPON (3) ------- (None) > --- INVENTORY (15) --- Light Deuterium Engine Light Nuclear Core Aluminum Leg Makeshift Leg Improved Heat Sink Large Matter Pod (150) Sensor Array Improved Signal Interpreter Improved Utility Shielding Hardened Medium Armor Plating Reactive Plating Shock Bomb Launcher Peak State ------------ > --- POWER ------------ Micro Nuclear Core > --- PROPULSION ------- Titanium Leg Titanium Leg Titanium Leg Arachnoskeleton > --- UTILITY ---------- Improved Heat Sink Large Storage Unit Machine Analyzer Improved Sensor Array Improved Terrain Scan Processor Improved Light Armor Plating > --- WEAPON ----------- Heavy Particle Gun High-powered Shotgun Makeshift Hammer > --- INVENTORY -------- Deuterium Engine Light Deuterium Engine Light Nuclear Core Aluminum Leg Makeshift Leg Large Matter Pod Sensor Array Improved Signal Interpreter Terrain Scanner Improved Utility Shielding Hardened Medium Armor Plating Reactive Plating Heavy Particle Cannon Shock Bomb Launcher Rocket Launcher [Rating: 64] Favorites ----------- Power Ion Engine Engine Ion Engine Power Core Micro Nuclear Core Propulsion Light Treads Treads Light Treads Leg Titanium Leg Wheel Wheel Hover Unit Gravmag System Utility Large Storage Unit Device Sensor Array Storage Large Storage Unit Processor Machine Analyzer Protection Makeshift Light Armor Plating Weapon Assault Rifle Energy Gun Heavy Particle Gun Energy Cannon Heavy Particle Cannon Ballistic Gun Assault Rifle Ballistic Cannon Light Cannon Launcher Rocket Launcher Impact Weapon Makeshift Hammer Build | -11 -10 -10 -10 -8 -7 -7 ------- Run | Yrd Mat Min Sub Mat Fac Was Slots Evolved 6 | . . . . 4 2 . Power . | . . . . . . . Propulsion 1 | . . . . 1 . . Utility 4 | . . . . 2 2 . Weapon 1 | . . . . 1 . . Parts Attached 64 | 7 4 1 14 34 3 1 Power 8 | 1 . 1 . 5 1 . Engine 6 | 1 . 1 . 4 . . Core 2 | . . . . 1 1 . Reactor . | . . . . . . . Propulsion 15 | 3 . . 2 10 . . Treads 4 | 2 . . 2 . . . Leg 6 | . . . . 6 . . Wheel 1 | 1 . . . . . . Hover 4 | . . . . 4 . . Flight . | . . . . . . . Utility 16 | 1 2 . 3 8 2 . Device 5 | . 1 . . 3 1 . Storage 2 | 1 1 . . . . . Processor 2 | . . . . 1 1 . Hackware . | . . . . . . . Protection 7 | . . . 3 4 . . Artifact . | . . . . . . . Weapon 25 | 2 2 . 9 11 . 1 Energy Gun 6 | . 1 . 1 4 . . Energy Cannon 1 | . . . . 1 . . Ballistic Gun 11 | 2 . . 4 5 . . Ballistic Cannon 3 | . 1 . 2 . . . Launcher 3 | . . . 1 1 . 1 Special Weapon . | . . . . . . . Impact Weapon 1 | . . . 1 . . . Slashing Weapon . | . . . . . . . Piercing Weapon . | . . . . . . . Special Melee Weapon . | . . . . . . . Unidentified Prototypes 3 | . . . . 3 . . Corrupted Parts 1 | . . . . 1 . . System Corruption 1 | . . . . 1 . . Parts Lost 26 | . . 2 4 12 . 8 Power 7 | . . 1 . 4 . 2 Propulsion 6 | . . . 1 4 . 1 Utility 2 | . . . . 1 . 1 Weapon 11 | . . 1 3 3 . 4 Highest Loss Streak 7 | . . 1 2 6 . 7 To Critical Strikes 1 | . . . 1 . . . Average Backups 13 | 4 9 14 13 13 14 14 Power 1 | . 1 . 1 1 3 2 Propulsion 3 | 2 2 4 4 2 2 2 Utility 5 | . 3 6 5 6 6 7 Weapon 2 | 1 2 3 2 3 3 2 Tool/Special . | . . . . . . . Unused Backups 21 | . 1 2 6 4 . 8 Power 3 | . . . 1 . . 2 Propulsion 6 | . 1 . 3 1 . 1 Utility 10 | . . 1 1 3 . 5 Weapon 2 | . . 1 1 . . . Tool/Special . | . . . . . . . Average Slot Usage (%) 91 | . 98 100 99 77 84 73 Engine 11 | . 14 14 14 7 1 1 Treads 18 | . 28 28 27 . . . Leg 6 | . . . . 17 25 19 Device 10 | . 12 14 8 9 10 10 Storage 11 | . 14 14 14 7 6 6 Processor 2 | . . . . 6 10 12 Protection 3 | . . . 5 5 6 4 Energy Gun 4 | . 9 5 . 9 6 4 Energy Cannon 1 | . . . . 3 4 . Ballistic Gun 9 | . 8 8 14 4 3 3 Ballistic Cannon 7 | . 9 14 9 1 . . Impact Weapon 1 | . . . 2 2 5 3 Peak Build Rating 64 | 6 8 9 17 55 64 63 Average Rating 22 | 3 7 8 12 45 60 53 On Entrance 21 | . 6 8 9 13 55 62 Avg Prop Armor Cover (%) 8 | . . . . 8 8 8 Naked Turns . | . . . . . . . Heaviest Build 50 | 14 31 31 36 50 45 40 Greatest Support 101 | 40 40 40 40 84 51 101 Greatest Overweight (x) 3 | 3 . . . 2 . . Average Overweight (x) . | . . . . . . . Largest Inventory Capacity 15 | 8 15 15 15 15 15 15 Average Capacity 14 | 7 11 15 15 15 15 15 Most Carried 15 | 8 15 15 15 15 15 15 Average Carried 13 | 4 9 14 14 14 13 13 Final Capacity 15 | 8 15 15 15 15 15 15 Final Carried 15 | 4 15 15 15 15 15 12 Class Distribution -------------------- 77% | Mutant 12% | Skirmisher 3% | Assassin Dominant Class ---------------- Mutant | -10/Materials Mutant | -10/Mines Mutant | -10/Subcaves Skirmisher | -8/Materials Assassin | -7/Factory Assassin | -7/Waste Resources | -11 -10 -10 -10 -8 -7 -7 ----------- Run | Yrd Mat Min Sub Mat Fac Was Matter Collected 1805 | 261 172 171 508 635 58 . Remotely . | . . . . . . . Salvage Created 1926 | . 234 140 305 1189 58 . Parts 115 | . 16 5 28 64 2 . Haulers Intercepted 3 | . 2 . . 1 . . Recyclers Shooed 1 | . . . . 1 . . Parts Field Recycled . | . . . . . . . Retrieved Matter . | . . . . . . . Parts Self-Destructed 11 | . . . 11 . . . Prevented . | . . . . . . . Parts Restored . | . . . . . . . Kills | -11 -10 -10 -10 -8 -7 -7 ------- Run | Yrd Mat Min Sub Mat Fac Was Combat Hostiles Destroyed 43 | . 3 4 12 23 1 . Guns 29 | . 3 3 6 16 1 . Cannons 12 | . . 1 6 5 . . AOE 2 | . . . . 2 . . Classes Destroyed 12 | . 6 1 1 4 . . Worker 2 | . 1 . . 1 . . Builder 3 | . . . . 3 . . Hauler 3 | . 2 . . 1 . . Recycler 2 | . . . . 2 . . Mechanic 2 | . 1 . . 1 . . Operator 1 | . 1 . . . . . Watcher 2 | . 1 . . 1 . . Swarmer 13 | . 3 . 3 7 . . Grunt 14 | . . 4 . 10 . . Duelist 1 | . . . . 1 . . Sentry 6 | . . . . 5 1 . Subdweller 9 | . . . 9 . . . Best Kill Streak 12 | . 5 2 3 12 1 . Combat Bots Only 8 | . 3 2 3 8 1 . Max Kills in Single Turn 4 | . 1 1 1 4 1 . Gunslinging . | . . . . . . . Exploded 2 | . . . . 2 . . Melee . | . . . . . . . Uniques/NPCs Destroyed . | . . . . . . . Combat | -11 -10 -10 -10 -8 -7 -7 -------- Run | Yrd Mat Min Sub Mat Fac Was Hostile Shots Fired 317 | . 15 32 50 182 27 11 Missed 93 | . 4 5 9 63 10 2 Hits 224 | . 11 27 41 119 17 9 Melee 11 | . . . . 2 . 9 Projectile 213 | . 11 27 41 117 17 . Critical Strikes 9 | . . . 3 4 . 2 Damage Taken 3544 | . 87 341 851 1793 131 341 Core 602 | . 10 53 107 286 32 114 Absorbed by Shields . | . . . . . . . Redirected to Shielding 55 | . . . . 55 . . Core Remaining (%) 60 | 100 . . 32 48 . . Volleys Fired 150 | . 17 16 46 67 2 2 Largest 3 | . 2 2 2 3 3 1 Hottest 168 | . 70 50 66 168 155 75 Shots Fired 297 | . 27 28 81 153 6 2 Gun 208 | . 17 16 46 125 4 . Cannon 85 | . 10 12 32 27 2 2 Launcher 4 | . . . 3 1 . . Special . | . . . . . . . Kinetic 170 | . 10 24 75 59 2 . Thermal 102 | . . . 3 93 4 2 Explosive 3 | . . . 3 . . . Electromagnetic 22 | . 17 4 . 1 . . Robot Hit Streak 21 | . 5 11 21 13 7 . Robot Miss Streak 3 | . 2 2 3 3 1 . Penetration Max . | . . . . . . . Secondary Targets . | . . . . . . . Shots Hit Robots 192 | . 16 20 59 92 5 . Core Hits 92 | . 11 10 21 47 3 . Critical Kills 1 | . . 1 . . . . Critical Parts Destroyed . | . . . . . . . Critical Strikes 6 | . . 2 2 2 . . Destroy 2 | . . 1 1 . . . Blast 4 | . . 1 1 2 . . Melee Attacks 18 | . . . 2 14 1 1 Impact 18 | . . . 2 14 1 1 Slashing . | . . . . . . . Piercing . | . . . . . . . Sneak Attacks . | . . . . . . . Combat Hostiles . | . . . . . . . Follow-up Attacks . | . . . . . . . Damage Inflicted 3698 | . 263 297 847 2157 134 . Guns 2502 | . 193 168 421 1636 84 . Cannons 1021 | . 70 126 426 349 50 . Explosions 119 | . . . . 119 . . Melee 53 | . . . . 53 . . Ramming 3 | . . 3 . . . . Kinetic 1879 | . 70 255 826 666 62 . Thermal 1485 | . . . 21 1392 72 . Explosive . | . . . . . . . Electromagnetic 278 | . 193 39 . 46 . . Impact 53 | . . . . 53 . . Slashing . | . . . . . . . Piercing . | . . . . . . . Highest Corruption 19 | . 2 2 2 5 . 19 Average Corruption 2 | . 2 2 2 3 . 11 Corruption Purged . | . . . . . . . Corruption Blocked . | . . . . . . . Effects 54 | . 4 3 25 17 . 5 Message Errors 15 | . 1 . 5 7 . 2 Matter Fused 7 | . . . 4 3 . . Heat Flow Errors 14 | . 2 2 5 3 . 2 Energy Discharges 5 | . . . 5 . . . Parts Rejected 1 | . . . . 1 . . Data Loss (minor) 4 | . . . 2 1 . 1 Data Loss (major) 3 | . . . 2 1 . . Misfires 1 | . . . . 1 . . Alerts 3 | . 1 1 1 . . . Weapon Failures 1 | . . . 1 . . . Overload Shots . | . . . . . . . Overflow Damage 18 | . . . . 18 . . Projectiles . | . . . . . . . Explosions . | . . . . . . . Melee 18 | . . . . 18 . . Knockbacks 7 | . 2 1 3 1 . . Impact . | . . . . . . . Kinetic 7 | . 2 1 3 1 . . Secondary . | . . . . . . . Self-Inflicted Damage 86 | . . . 39 47 . . Shots 3 | . . . 1 2 . . Rammed 1 | . . 1 . . . . Targets Rammed 1 | . . 1 . . . . Kicked . | . . . . . . . Crushed . | . . . . . . . Highest Temperature 349 | . 166 212 234 349 90 230 Average Temperature 100 | . 37 45 109 117 53 112 Received Heat Transfer 1421 | . . 201 332 846 42 . Effects 5 | . . . 1 4 . . Shutdowns 1 | . . . . 1 . . Energy Bleed 1 | . . . 1 . . . Interference 3 | . . . . 3 . . Siege Activations . | . . . . . . . Martial Activations . | . . . . . . . Shielding Activations . | . . . . . . . Robots Disrupted . | . . . . . . . Combat Hostiles . | . . . . . . . Robots Corrupted 1 | . . . . 1 . . Combat Hostiles . | . . . . . . . Parts Fried 1 | . . . . 1 . . Impact Corruptions 1 | . . . . 1 . . Robots Melted . | . . . . . . . Combat Hostiles . | . . . . . . . Parts Melted 1 | . . . . 1 . . Heat Transferred 2518 | . . . 50 2357 111 . Parts Sabotaged . | . . . . . . . Parts Stolen . | . . . . . . . Parts Stripped . | . . . . . . . Power Chain Reactions 1 | . . . . 1 . . Alert | -11 -10 -10 -10 -8 -7 -7 ------- Run | Yrd Mat Min Sub Mat Fac Was Maximum Alert Level 1 | . . . . 1 . . Low Security (%) 96 | 100 100 100 . 92 100 100 Level 1 3 | . . . . 7 . . Level 2 . | . . . . . . . Level 3 . | . . . . . . . Level 4 . | . . . . . . . Level 5 . | . . . . . . . High Security . | . . . . . . . Max Security . | . . . . . . . Peak Influence 219 | . 65 50 . 219 56 12 Initial 41 | . . . . . 41 12 Average 53 | . 16 8 . 103 35 1 Influence Increases 1134 | . 135 100 70 784 45 . Destroy 0b10 Robot/C 680 | . 60 80 60 460 20 . Destroy 0b10 Robot/NC 75 | . 30 . . 45 . . Destroy Leader 170 | . 16 20 10 114 10 . Successful Hack 29 | . 29 . . . . . Disable Machine 60 | . . . . 45 15 . Destroy Structure 30 | . . . . 30 . . Lose Combat Pursuer 90 | . . . . 90 . . Influence Decreases 1134 | . 135 100 70 692 101 36 Entered New Map 75 | . . . . . 51 24 Time Decay 779 | . 135 90 70 422 50 12 Lost Part 130 | . . 10 . 120 . . Purge Threat 150 | . . . . 150 . . Squads Dispatched 8 | . 1 . . 7 . . Investigation 1 | . 1 . . . . . Extermination . | . . . . . . . Reinforcement 1 | . . . . 1 . . Assault . | . . . . . . . Garrison 6 | . . . . 6 . . Intercept . | . . . . . . . Searches Triggered . | . . . . . . . Construction Impeded . | . . . . . . . Haulers Reinforced . | . . . . . . . Active Scanning Responses . | . . . . . . . Cargo Convoy Interrupts . | . . . . . . . Stealth | -11 -10 -10 -10 -8 -7 -7 --------- Run | Yrd Mat Min Sub Mat Fac Was Distress Signals 3 | . . . . 3 . . Communications Jammed . | . . . . . . . Distress Signals . | . . . . . . . Times Spotted 69 | . 9 4 12 37 1 6 Peak Tracking Total 9 | . 3 2 3 9 1 6 Tactical Retreats 3 | . . . . 3 . . Traps | -11 -10 -10 -10 -8 -7 -7 ------- Run | Yrd Mat Min Sub Mat Fac Was Traps Triggered 4 | . 3 . . . 1 . Indirectly . | . . . . . . . Trap Hack Attempts . | . . . . . . . Triggered . | . . . . . . . Disarmed . | . . . . . . . Reprogrammed . | . . . . . . . Reused . | . . . . . . . Traps Extracted . | . . . . . . . Installed . | . . . . . . . Triggered . | . . . . . . . Machines | -11 -10 -10 -10 -8 -7 -7 ---------- Run | Yrd Mat Min Sub Mat Fac Was Machines Disabled 5 | . . . 1 3 1 . Max in Single Turn 1 | . . . 1 1 1 . Machines Repaired . | . . . . . . . Machines Dismantled . | . . . . . . . Machines Sabotaged . | . . . . . . . Overloaded Fab Kills . | . . . . . . . Hacking | -11 -10 -10 -10 -8 -7 -7 --------- Run | Yrd Mat Min Sub Mat Fac Was Machines Accessed 15 | . 5 . 2 8 . . Terminals 10 | . 5 . . 5 . . Fabricators . | . . . . . . . Repair Stations 1 | . . . . 1 . . Recycling Units . | . . . . . . . Scanalyzers 1 | . . . . 1 . . Garrison Access 1 | . . . . 1 . . Total Hacks 51 | . 21 . 14 16 . . Successful 29 | . 12 . 14 3 . . Failed 22 | . 9 . . 13 . . Catastrophic 3 | . . . . 3 . . Database Lockouts . | . . . . . . . Manual 33 | . 23 . . 10 . . Terminals 31 | . 21 . . 10 . . Fabricators . | . . . . . . . Repair Stations 2 | . . . . 2 . . Recycling Units . | . . . . . . . Scanalyzers 2 | . . . . 2 . . Garrison Access 2 | . . . . 2 . . Terminal Hacks 21 | . 6 . 14 1 . . Record 13 | . . . 13 . . . Robot Analysis 6 | . 6 . . . . . Unreport Threat 1 | . . . . 1 . . Proto ID Catalog 1 | . . . 1 . . . Fabricator Hacks . | . . . . . . . Repair Station Hacks . | . . . . . . . Recycling Unit Hacks . | . . . . . . . Scanalyzer 2 | . . . . 2 . . Retrieve Study 2 | . . . . 2 . . Garrison Access Hacks . | . . . . . . . Unauthorized Hacks 6 | . 6 . . . . . Terminals 6 | . 6 . . . . . Botnet 1 | . 1 . . . . . Skim 5 | . 5 . . . . . Fabricators . | . . . . . . . Repair Stations . | . . . . . . . Recycling Units . | . . . . . . . Scanalyzers . | . . . . . . . Garrison Access . | . . . . . . . Data Cores Recovered 1 | . 1 . . . . . Used . | . . . . . . . Hacking Detections 13 | . 5 . . 8 . . Full Trace Events . | . . . . . . . Feedback Events . | . . . . . . . Feedback Blocked . | . . . . . . . Robot Schematics Acquired . | . . . . . . . Robots Built . | . . . . . . . Authchips . | . . . . . . . Time . | . . . . . . . Total Robot Build Rating . | . . . . . . . Part Schematics Acquired . | . . . . . . . Parts Built . | . . . . . . . Authchips . | . . . . . . . Time . | . . . . . . . Total Part Build Rating . | . . . . . . . Part Studies Acquired 2 | . . . . 2 . . Parts Repaired . | . . . . . . . Time . | . . . . . . . Parts Recycled . | . . . . . . . Recycled Matter . | . . . . . . . Retrieved Matter . | . . . . . . . Retrieved Components . | . . . . . . . Parts Scanalyzed . | . . . . . . . Part Schematics Acquired . | . . . . . . . Parts Damaged . | . . . . . . . Bothacking | -11 -10 -10 -10 -8 -7 -7 ------------ Run | Yrd Mat Min Sub Mat Fac Was Used RIF Installer . | . . . . . . . Robots Hacked . | . . . . . . . Non-combat . | . . . . . . . Combat . | . . . . . . . Robot Hacks Applied . | . . . . . . . Relay Couplers Released . | . . . . . . . Fabnet Peak Effective % . | . . . . . . . Robots Rewired . | . . . . . . . Allies Hacked . | . . . . . . . Hacks Repelled . | . . . . . . . Allies | -11 -10 -10 -10 -8 -7 -7 -------- Run | Yrd Mat Min Sub Mat Fac Was Total Allies . | . . . . . . . Largest Group . | . . . . . . . Highest-Rated Group . | . . . . . . . Highest-Rated Ally . | . . . . . . . Total Orders . | . . . . . . . Ally Attacks . | . . . . . . . Total Damage . | . . . . . . . Kills . | . . . . . . . Allies Corrupted . | . . . . . . . Allies Melted . | . . . . . . . Intel | -11 -10 -10 -10 -8 -7 -7 ------- Run | Yrd Mat Min Sub Mat Fac Was Active Infowar (turns) 3509 | . 463 642 956 1197 112 139 Sensors 3130 | . 463 642 956 868 112 89 Terrain 545 | . . . . 373 34 138 Machine Analysis 1347 | . . . . 1096 112 139 Robot Analysis Total 6 | . 6 . . . . . Derelict Logs Recovered 5 | . . 3 2 . . . Drone Launches . | . . . . . . . Drone Recoveries . | . . . . . . . Exploration | -11 -10 -10 -10 -8 -7 -7 ------------- Run | Yrd Mat Min Sub Mat Fac Was Turns Passed 4371 | 87 501 642 1663 1227 112 139 Spaces Moved 2370 | 56 256 356 916 597 71 118 Core 27 | 27 . . . . . . Treads 1557 | 29 256 356 916 . . . Legs 759 | . . . . 570 71 118 Wheels . | . . . . . . . Hover 27 | . . . . 27 . . Flight . | . . . . . . . Fastest Speed 50 | 50 160 160 160 90 115 90 Average Speed 151 | 128 160 160 160 145 115 105 Slowest Speed 200 | 200 160 160 160 200 115 115 Overloaded Moves . | . . . . . . . Propulsion Burnouts . | . . . . . . . Robots Hopped . | . . . . . . . Potential Cave-ins . | . . . . . . . Cave-ins Triggered . | . . . . . . . Exploration Rate (%) 42 | 3 44 72 52 61 2 66 Regions Visited 6 Branch Regions 2 Pre-discovered Areas 5 | . 1 2 2 . . . Known Exits Taken 1 | . . . . 1 . . Unknown Exits Taken 4 | 1 1 1 1 . . . Scrap Searched 10 | . . 2 8 . . . Spaces Dug 14 | . . . . 14 . . Terrain Destroyed 47 | . . . 20 27 . . Melee 13 | . . . . 13 . . Projectile 11 | . . . . 11 . . AOE 23 | . . . 20 3 . . Terrain Rammed . | . . . . . . . Walls Destroyed . | . . . . . . . Machines Disabled . | . . . . . . . Actions | -11 -10 -10 -10 -8 -7 -7 --------- Run | Yrd Mat Min Sub Mat Fac Was Total 2864 | 70 320 401 1038 810 96 129 Wait 138 | . 29 21 28 49 10 1 Move 2365 | 55 255 355 915 596 71 118 Hop . | . . . . . . . Pick Up 60 | 8 12 4 11 22 2 1 Fast Attach 22 | 2 2 . 3 13 . 2 Attach 29 | 4 . 2 4 14 2 3 Detach . | . . . . . . . Swap 42 | 1 3 . 13 19 6 . Drop 39 | . 2 2 16 16 2 1 Fire 150 | . 17 16 46 67 2 2 Melee 18 | . . . 2 14 1 1 Ram . | . . . . . . . Kick . | . . . . . . . Crush 1 | . . 1 . . . . Escape Stasis . | . . . . . . . Rewire . | . . . . . . . Trap . | . . . . . . . Miscellaneous . | . . . . . . . Route ------- -11/Scrapyard -10/Materials (discovered 2 exits: [*Min x2]) -10/Mines (discovered 3 exits: [*Mat] / [*Exi] / *Sub) -10/Subcaves -8/Materials (discovered 2 exits: *Fac x2) -7/Factory -7/Waste History --------- Turn | Location | Event 7 | -11/Scrapyard | Discovered new exit (range 13) 88 | -11/Scrapyard | Entered Materials 265 | -10/Materials | Discovered new exit (range 9) 328 | -10/Materials | Build established: Mutant 527 | -10/Materials | Discovered new exit (range 9) 589 | -10/Materials | Entered Mines 590 | -10/Mines | Learned location of Storage (-7) 657 | -10/Mines | Deemed a non-threat by the Exiles lab entrance 657 | -10/Mines | Discovered new exit (range 5) 803 | -10/Mines | Learned Materials emergency access door positions 953 | -10/Mines | Discovered new exit (range 9) 996 | -10/Mines | Learned 2 Materials zone layouts 1039 | -10/Mines | Received a Rocket Launcher from a helpful Derelict 1223 | -10/Mines | Discovered new exit (range 6) 1231 | -10/Mines | Entered Subcaves 1263 | -10/Subcaves | Learned 2 Materials zone layouts 1406 | -10/Subcaves | Visited Clippyterm 1411 | -10/Subcaves | Learned location of Deep Caves (-7) 1411 | -10/Subcaves | Learned location of Extension (-4) 1474 | -10/Subcaves | Learned Materials terminal intel 2087 | -10/Subcaves | Visited 4L-MR0's lab 2109 | -10/Subcaves | Found Arachnoskeleton 2345 | -10/Subcaves | Core integrity fell below 50% 2803 | -10/Subcaves | Discovered new exit (range 11) 2894 | -10/Subcaves | Entered Materials 2894 | -8/Materials | Evolved 4 slots: Propulsion x1, Utility x2, Weapon x1 2895 | -8/Materials | Identified exit to Factory 2897 | -8/Materials | Loaded intel: 12 terminal locations 3037 | -8/Materials | Garrison activated, responded to threat 3130 | -8/Materials | Lost 6 parts (2p3n1u) 3191 | -8/Materials | Attached Arachnoskeleton, gained temporary slots: Propulsion x3 3223 | -8/Materials | Lost 4 parts (2p1n1w) 3556 | -8/Materials | Garrison activated, responded to threat 3640 | -8/Materials | Core integrity fell below 50% 3668 | -8/Materials | Destroyed 8 combat bots 4106 | -8/Materials | Discovered exit to Factory (range 3) 4121 | -8/Materials | Entered Factory 4121 | -7/Factory | Evolved 2 slots: Utility x2 4233 | -7/Factory | Sucked down chute 4233 | -7/Factory | Entered Waste 4244 | -7/Waste | Spotted C-40 Crusher 4248 | -7/Waste | EMP discharged 4248 | -7/Waste | System corruption reached 10% 4284 | -7/Waste | Spotted C-40 Crusher 4288 | -7/Waste | Spotted C-40 Crusher 4298 | -7/Waste | Spotted C-40 Crusher 4312 | -7/Waste | Spotted C-40 Crusher 4314 | -7/Waste | Spotted C-40 Crusher 4319 | -7/Waste | Crushed by Compactor (1 part destroyed, 1 dropped) 4322 | -7/Waste | Crushed by Compactor (0 parts destroyed, 1 dropped) 4325 | -7/Waste | Crushed by Compactor (1 part destroyed) 4325 | -7/Waste | Crushed by Compactor (1 part destroyed, 2 dropped) 4328 | -7/Waste | Crushed by Compactor (1 part destroyed, 1 dropped) 4331 | -7/Waste | Crushed by Compactor (1 part destroyed, 1 dropped) 4336 | -7/Waste | Crushed by Compactor (1 part destroyed) 4348 | -7/Waste | EMP discharged 4367 | -7/Waste | Lost 7 parts (1p1n1u4w) 4371 | -7/Waste | Crushed by Compactor (1 part destroyed, 1 dropped) 4372 | -7/Waste | Self-destructed Last Messages --------------- 04326_ Temporary Propulsion slot lost. 04327_ Acquired Micro-nuke Launcher. 04328_ Titanium Leg+ crushed. 04328_ Mic. Nuclear Core crushed. 04328_ Micro-nuke Launcher crushed. 04329_ Acquired Micro-nuke Launcher. 04331_ Imp. Light Armor Plating crushed. 04331_ Titanium Leg+ crushed. 04331_ Micro-nuke Launcher destroyed. 04331_ Temporary Propulsion slot lost. 04336_ Titanium Leg+ crushed. 04336_ Temporary Propulsion slot lost. 04338_ ALERT: Foreign system detected. Charging EMP. 04340_ WTRIF3AAXGVB46PULLWKLB